fUST/lending_fUST_20240318
["ID","MTS","AMOUNT","RATE_DAILY","PERIOD"]
[319352631,1710693048879,-500.0,0.00019999,2]
[319352632,1710693048889,-174.0,0.0002,2]
[319352633,1710693048899,-241.49774147,0.0002,2]
[319352634,1710693048908,-154.95351395,0.0002,2]
[319352635,1710693048918,-400.0,0.0002,2]
[319352636,1710693048928,-458.90559464,0.0002,2]
[319352637,1710693048938,-154.95351395,0.0002,2]
[319352638,1710693048949,-154.95351395,0.0002,2]
[319352639,1710693048958,-633.99280875,0.0002,2]
[319352640,1710693048968,-731.75,0.00020056,2]
[319352641,1710693048979,-805.68,0.00020056,2]
[319352642,1710693048988,-166.666666,0.00020076,2]
[319352643,1710693048996,-1000.0,0.0002009,2]
[319352644,1710693049006,-166.477447,0.000201,2]
[319352645,1710693049015,-1032.05835885,0.00020151,2]
[319352646,1710693049025,-500.0,0.00020165,2]
[319352647,1710693049092,-500.0,0.00020165,2]
[319352648,1710693049103,-1397.53,0.00020165,2]
[319352649,1710693049112,-500.0,0.00020165,2]
[319352650,1710693049122,-696.8,0.00020165,2]
[319352651,1710693049132,-2773.24,0.00020165,2]
[319352652,1710693049142,-500.0,0.00020165,2]
[319352653,1710693049151,-500.0,0.00020165,2]
[319352654,1710693049160,-500.0,0.00020165,2]
[319352655,1710693049169,-500.0,0.00020165,2]
[319352656,1710693049178,-500.0,0.00020165,2]
[319352657,1710693049187,-500.0,0.00020165,2]
[319352658,1710693049196,-985.7,0.00020165,2]
[319352659,1710693049206,-899.7,0.00020165,2]
[319352660,1710693049215,-183.78039534,0.00020165,2]
[319352661,1710693049226,-2588.83,0.00020165,2]
[319352662,1710693049235,-6929.43,0.00020165,2]
[319352663,1710693049244,-1776.2,0.00020165,2]
[319352664,1710693049253,-3428.31,0.00020165,2]
[319352665,1710693049262,-706.93,0.00020165,2]
[319352666,1710693049271,-612.08,0.00020165,2]
[319352667,1710693049281,-500.0,0.00020165,2]
[319352668,1710693049291,-39057.49,0.00020165,2]
[319352669,1710693049301,-610.77,0.00020165,2]
[319352670,1710693049312,-500.0,0.00020165,2]
[319352671,1710693049324,-500.0,0.00020165,2]
[319352672,1710693049333,-500.0,0.00020165,2]
[319352673,1710693049344,-1918.37,0.00020165,2]
[319352674,1710693049353,-500.0,0.00020165,2]
[319352675,1710693049363,-399.63426358,0.00020165,2]
[319352676,1710693049373,-2179.76,0.00020165,2]
[319352677,1710693049382,-500.0,0.00020165,2]
[319352678,1710693049391,-500.0,0.00020165,2]
[319352679,1710693049401,-668.52,0.00020165,2]
[319352680,1710693049410,-533.18,0.00020165,2]
[319352681,1710693049419,-500.0,0.00020165,2]
[319352682,1710693049428,-500.0,0.00020165,2]
[319352683,1710693049437,-500.0,0.00020166,2]
[319352684,1710693049447,-500.0,0.00020166,2]
[319352685,1710693049458,-584.05276819,0.00020166,2]
[319352686,1710693049467,-500.0,0.00020166,2]
[319352687,1710693049478,-500.0,0.00020166,2]
[319352688,1710693049487,-500.0,0.00020166,2]
[319352689,1710693049496,-500.0,0.00020166,2]
[319352690,1710693049505,-500.0,0.00020166,2]
[319352691,1710693049515,-500.0,0.00020166,2]
[319352692,1710693049525,-500.0,0.00020166,2]
[319352693,1710693049534,-508.82623567,0.00020166,2]
[319352694,1710693049543,-500.0,0.00020166,2]
[319352695,1710693049552,-500.0,0.00020166,2]
[319352696,1710693049561,-500.0,0.00020166,2]
[319352697,1710693049570,-500.0,0.00020166,2]
[319352698,1710693049579,-500.0,0.00020166,2]
[319352699,1710693049589,-364.77810235,0.00020166,2]
[319352700,1710693049601,-500.0,0.00020166,2]
[319352701,1710693049610,-217.02774073,0.00020166,2]
[319352702,1710693049621,-500.0,0.00020166,2]
[319352703,1710693049631,-500.0,0.00020166,2]
[319352704,1710693049640,-500.0,0.00020166,2]
[319352705,1710693049650,-500.0,0.00020166,2]
[319352706,1710693049659,-415.5203154,0.00020166,2]
[319352707,1710693049669,-731.75,0.00020169,2]
[319352708,1710693049678,-731.75,0.00020169,2]
[319352709,1710693049688,-731.75,0.00020169,2]
[319352710,1710693049698,-731.75,0.00020169,2]
[319352711,1710693049707,-731.75,0.00020169,2]
[319352712,1710693049716,-731.75,0.00020169,2]
[319352713,1710693049729,-731.75,0.00020169,2]
[319352714,1710693049738,-731.75,0.00020169,2]
[319352715,1710693049748,-731.75,0.00020169,2]
[319352716,1710693049758,-731.75,0.00020169,2]
[319352717,1710693049768,-731.75,0.00020169,2]
[319352718,1710693049777,-731.75,0.00020169,2]
[319352719,1710693049788,-731.75,0.00020169,2]
[319352720,1710693049797,-731.75,0.00020169,2]
[319352721,1710693049807,-731.80641807,0.00020169,2]
[319352722,1710693049817,-805.68,0.00020169,2]
[319352723,1710693049826,-805.68,0.00020169,2]
[319352724,1710693049835,-805.68,0.00020169,2]
[319352725,1710693049845,-805.68,0.00020169,2]
[319352726,1710693049855,-805.68,0.00020169,2]
[319352727,1710693049865,-805.68,0.00020169,2]
[319352728,1710693049875,-805.68,0.00020169,2]
[319352729,1710693049886,-805.68,0.00020169,2]
[319352730,1710693049895,-805.68,0.00020169,2]
[319352731,1710693049904,-805.68,0.00020169,2]
[319352732,1710693049913,-805.68,0.00020169,2]
[319352733,1710693049923,-805.68,0.00020169,2]
[319352734,1710693049932,-805.68,0.00020169,2]
[319352735,1710693049943,-805.68,0.00020169,2]
[319352736,1710693049952,-805.7226872,0.00020169,2]
[319352737,1710693049963,-2297.04,0.0002017,2]
[319352738,1710693049972,-500.0,0.0002017,2]
[319352739,1710693049982,-648.18434447,0.0002017,2]
[319352740,1710693049991,-500.0,0.0002017,2]
[319352741,1710693050000,-500.0,0.0002017,2]
[319352742,1710693050009,-1397.53,0.0002017,2]
[319352743,1710693050019,-1397.53,0.0002017,2]
[319352744,1710693050029,-500.0,0.0002017,2]
[319352745,1710693050038,-500.0,0.0002017,2]
[319352746,1710693050047,-696.8,0.0002017,2]
[319352747,1710693050056,-696.8,0.0002017,2]
[319352748,1710693050067,-2773.24,0.0002017,2]
[319352749,1710693050076,-2773.24,0.0002017,2]
[319352750,1710693050086,-2773.24,0.0002017,2]
[319352751,1710693050095,-500.0,0.0002017,2]
[319352752,1710693050105,-317.72910039,0.0002017,2]
[319352753,1710693050115,-500.0,0.0002017,2]
[319352754,1710693050125,-500.0,0.0002017,2]
[319352755,1710693050135,-500.0,0.0002017,2]
[319352756,1710693050144,-500.0,0.0002017,2]
[319352757,1710693050154,-500.0,0.0002017,2]
[319352758,1710693050163,-500.0,0.0002017,2]
[319352759,1710693050173,-500.0,0.0002017,2]
[319352760,1710693050183,-500.0,0.0002017,2]
[319352761,1710693050192,-500.0,0.0002017,2]
[319352762,1710693050202,-500.0,0.0002017,2]
[319352763,1710693050211,-500.0,0.0002017,2]
[319352764,1710693050220,-500.0,0.0002017,2]
[319352765,1710693050231,-500.0,0.0002017,2]
[319352766,1710693050241,-500.0,0.0002017,2]
[319352767,1710693050251,-985.7,0.0002017,2]
[319352768,1710693050260,-500.0,0.0002017,2]
[319352769,1710693050270,-985.7,0.0002017,2]
[319352770,1710693050280,-985.7,0.0002017,2]
[319352771,1710693050289,-500.0,0.0002017,2]
[319352772,1710693050299,-899.7,0.0002017,2]
[319352773,1710693050309,-899.7,0.0002017,2]
[319352774,1710693050319,-2588.83,0.0002017,2]
[319352775,1710693050329,-2588.83,0.0002017,2]
[319352776,1710693050339,-2588.83,0.0002017,2]
[319352777,1710693050348,-2588.83,0.0002017,2]
[319352778,1710693050357,-6929.43,0.0002017,2]
[319352779,1710693050367,-6929.43,0.0002017,2]
[319352780,1710693050377,-1776.2,0.0002017,2]
[319352781,1710693050387,-1776.2,0.0002017,2]
[319352782,1710693050457,-1776.2,0.0002017,2]
[319352783,1710693050466,-3428.31,0.0002017,2]
[319352784,1710693050477,-3428.31,0.0002017,2]
[319352785,1710693050486,-3428.31,0.0002017,2]
[319352786,1710693050496,-3428.31,0.0002017,2]
[319352787,1710693050505,-706.93,0.0002017,2]
[319352788,1710693050515,-706.93,0.0002017,2]
[319352789,1710693050524,-706.93,0.0002017,2]
[319352790,1710693050535,-706.93,0.0002017,2]
[319352791,1710693050544,-612.08,0.0002017,2]
[319352792,1710693050553,-612.08,0.0002017,2]
[319352793,1710693050562,-500.0,0.0002017,2]
[319352794,1710693050571,-500.0,0.0002017,2]
[319352795,1710693050581,-500.0,0.0002017,2]
[319352796,1710693050590,-500.0,0.0002017,2]
[319352797,1710693050599,-39057.49,0.0002017,2]
[319352798,1710693050609,-39057.49,0.0002017,2]
[319352799,1710693050618,-500.0,0.0002017,2]
[319352800,1710693050627,-610.77,0.0002017,2]
[319352801,1710693050637,-610.77,0.0002017,2]
[319352802,1710693050646,-610.77,0.0002017,2]
[319352803,1710693050656,-610.77,0.0002017,2]
[319352804,1710693050667,-500.0,0.0002017,2]
[319352805,1710693050676,-500.0,0.0002017,2]
[319352806,1710693050686,-504.58350665,0.0002017,2]
[319352807,1710693050696,-500.0,0.0002017,2]
[319352808,1710693050706,-500.0,0.0002017,2]
[319352809,1710693050715,-500.0,0.0002017,2]
[319352810,1710693050725,-500.0,0.0002017,2]
[319352811,1710693050735,-500.0,0.0002017,2]
[319352812,1710693050745,-500.0,0.0002017,2]
[319352813,1710693050754,-500.0,0.0002017,2]
[319352814,1710693050764,-500.0,0.0002017,2]
[319352815,1710693050773,-1918.37,0.0002017,2]
[319352816,1710693050782,-1918.37,0.0002017,2]
[319352817,1710693050792,-1918.37,0.0002017,2]
[319352818,1710693050801,-1918.37,0.0002017,2]
[319352819,1710693050811,-500.0,0.0002017,2]
[319352820,1710693050821,-500.0,0.0002017,2]
[319352821,1710693050830,-587.31703499,0.0002017,2]
[319352822,1710693050839,-2179.76,0.0002017,2]
[319352823,1710693050849,-2179.76,0.0002017,2]
[319352824,1710693050858,-2179.76,0.0002017,2]
[319352825,1710693050868,-2179.76,0.0002017,2]
[319352826,1710693050877,-500.0,0.0002017,2]
[319352827,1710693050887,-369.88500877,0.0002017,2]
[319352828,1710693050896,-500.0,0.0002017,2]
[319352829,1710693050905,-500.0,0.0002017,2]
[319352830,1710693050915,-500.0,0.0002017,2]
[319352831,1710693050923,-500.0,0.0002017,2]
[319352832,1710693050932,-668.52,0.0002017,2]
[319352833,1710693050942,-668.52,0.0002017,2]
[319352834,1710693050951,-668.52,0.0002017,2]
[319352835,1710693050961,-668.52,0.0002017,2]
[319352836,1710693050970,-500.0,0.0002017,2]
[319352837,1710693050980,-500.0,0.0002017,2]
[319352838,1710693050990,-500.0,0.0002017,2]
[319352839,1710693050999,-500.0,0.0002017,2]
[319352840,1710693051008,-500.0,0.0002017,2]
[319352841,1710693051018,-500.0,0.0002017,2]
[319352842,1710693051027,-500.0,0.0002017,2]
[319352843,1710693051039,-500.0,0.0002017,2]
[319352844,1710693051049,-383.14029048,0.00020171,2]
[319352845,1710693051060,-500.0,0.00020171,2]
[319352846,1710693051070,-500.0,0.00020171,2]
[319352847,1710693051081,-500.0,0.00020171,2]
[319352848,1710693051091,-500.0,0.00020171,2]
[319352849,1710693051102,-500.0,0.00020171,2]
[319352850,1710693051112,-500.0,0.00020171,2]
[319352851,1710693051122,-500.0,0.00020171,2]
[319352852,1710693051131,-500.0,0.00020171,2]
[319352853,1710693051146,-250.9988996,0.00020171,2]
[319352854,1710693051156,-1882.92818814,0.00020171,2]
[319352855,1710693051166,-326.65088458,0.00020171,2]
[319352856,1710693051176,-3501.36328965,0.00020171,2]
[319352857,1710693051185,-884.38898759,0.00020171,2]
[319352858,1710693051195,-950.05445765,0.00020171,2]
[319352859,1710693051204,-196.43542829,0.00020171,2]
[319352860,1710693051214,-441.66540862,0.00020171,2]
[319352861,1710693051223,-155.34569665,0.00020171,2]
[319352862,1710693051233,-281.46870911,0.00020171,2]
[319352863,1710693051242,-558.48918801,0.00020171,2]
[319352864,1710693051252,-404.59380981,0.00020171,2]
[319352865,1710693051261,-1474.69226491,0.00020171,2]
[319352866,1710693051271,-409.37047238,0.00020171,2]
[319352867,1710693051281,-155.14428418,0.00020171,2]
[319352868,1710693051290,-155.46105219,0.00020171,2]
[319352869,1710693051301,-422.88613906,0.00020171,2]
[319352870,1710693051311,-524.74757252,0.00020171,2]
[319352871,1710693051320,-155.39631053,0.00020171,2]
[319352872,1710693051329,-173.72377652,0.00020171,2]
[319352873,1710693051339,-778.52901897,0.00020171,2]
[319352874,1710693051350,-155.15515516,0.00020171,2]
[319352875,1710693051359,-253.85678197,0.00020171,2]
[319352876,1710693051368,-1843.47171606,0.00020171,2]
[319352877,1710693051377,-204.92613972,0.00020171,2]
[319352878,1710693051387,-155.38724073,0.00020171,2]
[319352879,1710693051396,-158.48477092,0.00020171,2]
[319352880,1710693051405,-428.2787978,0.00020171,2]
[319352881,1710693051414,-252.59265809,0.00020171,2]
[319352882,1710693051423,-281.21209698,0.00020171,2]
[319352883,1710693051433,-607.57363042,0.00020171,2]
[319352884,1710693051442,-301.09802703,0.00020171,2]
[319352885,1710693051451,-215.92501567,0.00020171,2]
[319352886,1710693051461,-746.39104535,0.00020171,2]
[319352887,1710693051470,-155.30149341,0.00020171,2]
[319352888,1710693051480,-327.3386321,0.00020171,2]
[319352889,1710693051489,-270.01647037,0.00020171,2]
[319352890,1710693051498,-500.0,0.00020171,2]
[319352891,1710693051507,-500.0,0.00020171,2]
[319352892,1710693051516,-500.0,0.00020171,2]
[319352893,1710693051525,-500.0,0.00020171,2]
[319352894,1710693051535,-500.0,0.00020171,2]
[319352895,1710693051544,-500.0,0.00020171,2]
[319352896,1710693051552,-500.0,0.00020171,2]
[319352897,1710693051561,-500.0,0.00020171,2]
[319352898,1710693051570,-500.0,0.00020171,2]
[319352899,1710693051580,-500.0,0.00020171,2]
[319352900,1710693051589,-500.0,0.00020171,2]
[319352901,1710693051598,-501.00542933,0.00020171,2]
[319352902,1710693051607,-500.0,0.00020171,2]
[319352903,1710693051616,-500.0,0.00020171,2]
[319352904,1710693051627,-501.55845944,0.00020171,2]
[319352905,1710693051692,-500.0,0.00020171,2]
[319352906,1710693051702,-500.0,0.00020171,2]
[319352907,1710693051711,-625.67523361,0.00020171,2]
[319352908,1710693051720,-500.0,0.00020171,2]
[319352909,1710693051732,-500.0,0.00020171,2]
[319352910,1710693051741,-500.0,0.00020171,2]
[319352911,1710693051750,-500.0,0.00020171,2]
[319352912,1710693051759,-500.0,0.00020171,2]
[319352913,1710693051769,-399.4059967,0.00020171,2]
[319352914,1710693051779,-500.0,0.00020171,2]
[319352915,1710693051788,-500.0,0.00020171,2]
[319352916,1710693051798,-500.0,0.00020171,2]
[319352917,1710693051809,-500.0,0.00020171,2]
[319352918,1710693051818,-500.0,0.00020171,2]
[319352919,1710693051828,-500.28936112,0.00020171,2]
[319352920,1710693051838,-500.0,0.00020171,2]
[319352921,1710693051850,-500.0,0.00020171,2]
[319352922,1710693051860,-500.0,0.00020171,2]
[319352923,1710693051869,-500.0,0.00020171,2]
[319352924,1710693051881,-500.0,0.00020171,2]
[319352925,1710693051891,-506.43283008,0.00020171,2]
[319352926,1710693051901,-500.0,0.00020171,2]
[319352927,1710693051911,-500.0,0.00020171,2]
[319352928,1710693051922,-500.0,0.00020171,2]
[319352929,1710693051932,-500.0,0.00020171,2]
[319352930,1710693051943,-500.0,0.00020171,2]
[319352931,1710693051954,-500.0,0.00020171,2]
[319352932,1710693051963,-500.0,0.00020171,2]
[319352933,1710693051973,-500.0,0.00020171,2]
[319352934,1710693051984,-500.0,0.00020171,2]
[319352935,1710693051994,-500.0,0.00020171,2]
[319352936,1710693052003,-209.79022572,0.00020171,2]
[319352937,1710693052013,-420.45839298,0.00020171,2]
[319352938,1710693052022,-500.0,0.00020171,2]
[319352939,1710693052033,-500.0,0.00020171,2]
[319352940,1710693052042,-500.0,0.00020171,2]
[319352941,1710693052052,-500.0,0.00020171,2]
[319352942,1710693052061,-500.0,0.00020171,2]
[319352943,1710693052071,-500.0,0.00020171,2]
[319352944,1710693052081,-500.0,0.00020171,2]
[319352945,1710693052091,-500.0,0.00020171,2]
[319352946,1710693052100,-500.0,0.00020171,2]
[319352947,1710693052109,-623.87607803,0.00020171,2]
[319352948,1710693052119,-500.0,0.00020171,2]
[319352949,1710693052129,-500.0,0.00020171,2]
[319352950,1710693052138,-500.0,0.00020171,2]
[319352951,1710693052147,-227.67572191,0.00020171,2]
[319352952,1710693052157,-2297.04,0.00020171,2]
[319352953,1710693052167,-500.0,0.00020171,2]
[319352954,1710693052176,-500.0,0.00020171,2]
[319352955,1710693052186,-500.0,0.00020171,2]
[319352956,1710693052195,-500.0,0.00020171,2]
[319352957,1710693052205,-500.0,0.00020171,2]
[319352958,1710693052214,-500.0,0.00020171,2]
[319352959,1710693052224,-517.63127804,0.00020171,2]
[319352960,1710693052236,-500.0,0.00020171,2]
[319352961,1710693052246,-500.0,0.00020171,2]
[319352962,1710693052264,-500.0,0.00020171,2]
[319352963,1710693052281,-500.0,0.00020171,2]
[319352964,1710693052294,-500.0,0.00020171,2]
[319352965,1710693052311,-500.0,0.00020171,2]
[319352966,1710693052330,-500.0,0.00020171,2]
[319352967,1710693052346,-500.0,0.00020171,2]
[319352968,1710693052359,-500.0,0.00020171,2]
[319352969,1710693052374,-500.0,0.00020171,2]
[319352970,1710693052389,-500.0,0.00020171,2]
[319352971,1710693052403,-500.0,0.00020171,2]
[319352972,1710693052417,-500.0,0.00020171,2]
[319352973,1710693052433,-500.0,0.00020171,2]
[319352974,1710693052448,-500.0,0.00020171,2]
[319352975,1710693052464,-500.0,0.00020171,2]
[319352976,1710693052479,-500.0,0.00020171,2]
[319352977,1710693052493,-500.0,0.00020171,2]
[319352978,1710693052511,-500.0,0.00020171,2]
[319352979,1710693052527,-500.0,0.00020171,2]
[319352980,1710693052540,-500.0,0.00020171,2]
[319352981,1710693052551,-500.0,0.00020171,2]
[319352982,1710693052565,-500.0,0.00020171,2]
[319352983,1710693052578,-500.0,0.00020171,2]
[319352984,1710693052592,-500.0,0.00020171,2]
[319352985,1710693052603,-500.0,0.00020171,2]
[319352986,1710693052616,-500.0,0.00020171,2]
[319352987,1710693052629,-500.0,0.00020171,2]
[319352988,1710693052641,-500.0,0.00020171,2]
[319352989,1710693052654,-500.0,0.00020171,2]
[319352990,1710693052666,-500.0,0.00020171,2]
[319352991,1710693052679,-500.0,0.00020171,2]
[319352992,1710693052692,-175.71151943,0.00020171,2]
[319352993,1710693052704,-500.0,0.00020171,2]
[319352994,1710693052717,-500.0,0.00020171,2]
[319352995,1710693052732,-500.0,0.00020171,2]
[319352996,1710693052745,-545.07988145,0.00020171,2]
[319352997,1710693052758,-500.0,0.00020171,2]
[319352998,1710693052771,-500.0,0.00020171,2]
[319352999,1710693052784,-500.0,0.00020171,2]
[319353000,1710693052797,-500.0,0.00020171,2]
[319353001,1710693052810,-500.0,0.00020171,2]
[319353002,1710693052823,-500.0,0.00020171,2]
[319353003,1710693052836,-8714.61,0.00020171,2]
[319353004,1710693052849,-8714.61,0.00020171,2]
[319353005,1710693052861,-8714.61,0.00020171,2]
[319353006,1710693052874,-8714.61,0.00020171,2]
[319353007,1710693052887,-500.0,0.00020171,2]
[319353008,1710693052899,-186.01815972,0.00020171,2]
[319353009,1710693052912,-1397.53,0.00020171,2]
[319353010,1710693052924,-1397.53,0.00020171,2]
[319353011,1710693052937,-500.0,0.00020171,2]
[319353012,1710693052950,-500.0,0.00020171,2]
[319353013,1710693052962,-500.0,0.00020171,2]
[319353014,1710693052977,-500.0,0.00020171,2]
[319353015,1710693052989,-1000.0,0.00020171,2]
[319353016,1710693053001,-1000.0,0.00020171,2]
[319353017,1710693053014,-1000.0,0.00020171,2]
[319353018,1710693053025,-355.84049593,0.00020171,2]
[319353019,1710693053126,-500.0,0.00020171,2]
[319353020,1710693053141,-189.34196987,0.00020171,2]
[319353021,1710693053151,-1337.59,0.00020171,2]
[319353022,1710693053161,-1337.59,0.00020171,2]
[319353023,1710693053171,-1337.59,0.00020171,2]
[319353024,1710693053182,-1337.59,0.00020171,2]
[319353025,1710693053191,-500.0,0.00020171,2]
[319353026,1710693053201,-500.0,0.00020171,2]
[319353027,1710693053210,-500.0,0.00020171,2]
[319353028,1710693053220,-500.0,0.00020171,2]
[319353029,1710693053230,-500.0,0.00020171,2]
[319353030,1710693053240,-500.0,0.00020171,2]
[319353031,1710693053249,-500.0,0.00020171,2]
[319353032,1710693053259,-500.0,0.00020171,2]
[319353033,1710693053269,-500.0,0.00020171,2]
[319353034,1710693053278,-500.0,0.00020171,2]
[319353035,1710693053287,-500.0,0.00020171,2]
[319353036,1710693053299,-500.0,0.00020171,2]
[319353037,1710693053311,-500.0,0.00020171,2]
[319353038,1710693053321,-500.0,0.00020171,2]
[319353039,1710693053330,-504.17377864,0.00020171,2]
[319353040,1710693053340,-500.0,0.00020171,2]
[319353041,1710693053350,-500.0,0.00020171,2]
[319353042,1710693053359,-500.0,0.00020171,2]
[319353043,1710693053368,-500.0,0.00020171,2]
[319353044,1710693053378,-500.0,0.00020171,2]
[319353045,1710693053388,-500.0,0.00020171,2]
[319353046,1710693053398,-500.0,0.00020171,2]
[319353047,1710693053408,-500.0,0.00020171,2]
[319353048,1710693053417,-500.0,0.00020171,2]
[319353049,1710693053426,-500.0,0.00020171,2]
[319353050,1710693053436,-500.0,0.00020171,2]
[319353051,1710693053446,-500.0,0.00020171,2]
[319353052,1710693053455,-188.40823772,0.00020171,2]
[319353053,1710693053464,-500.0,0.00020171,2]
[319353054,1710693053474,-374.83187563,0.00020171,2]
[319353055,1710693053485,-500.0,0.00020171,2]
[319353056,1710693053493,-500.0,0.00020171,2]
[319353057,1710693053502,-500.0,0.00020171,2]
[319353058,1710693053512,-500.0,0.00020171,2]
[319353059,1710693053521,-500.0,0.00020171,2]
[319353060,1710693053530,-502.69080951,0.00020171,2]
[319353061,1710693053540,-500.0,0.00020171,2]
[319353062,1710693053549,-696.8,0.00020171,2]
[319353063,1710693053559,-696.8,0.00020171,2]
[319353064,1710693053568,-500.0,0.00020171,2]
[319353065,1710693053577,-622.38303254,0.00020171,2]
[319353066,1710693053586,-9405.46,0.00020171,2]
[319353067,1710693053595,-9405.46,0.00020171,2]
[319353068,1710693053604,-9405.46,0.00020171,2]
[319353069,1710693053613,-9405.46,0.00020171,2]
[319353070,1710693053622,-205.81014383,0.00020171,2]
[319353071,1710693053631,-2773.24,0.00020171,2]
[319353072,1710693053640,-2773.24,0.00020171,2]
[319353073,1710693053649,-2773.24,0.00020171,2]
[319353074,1710693053658,-466.83867746,0.00020171,2]
[319353075,1710693053667,-500.0,0.00020171,2]
[319353076,1710693053676,-500.0,0.00020171,2]
[319353077,1710693053685,-500.0,0.00020171,2]
[319353078,1710693053694,-570.55313296,0.00020171,2]
[319353079,1710693053704,-892.1,0.00020171,2]
[319353080,1710693053713,-236.65252536,0.00020171,2]
[319353081,1710693053722,-892.1,0.00020171,2]
[319353082,1710693053731,-892.1,0.00020171,2]
[319353083,1710693053740,-500.0,0.00020171,2]
[319353084,1710693053749,-892.1,0.00020171,2]
[319353085,1710693053758,-565.88705163,0.00020171,2]
[319353086,1710693053768,-500.0,0.00020171,2]
[319353087,1710693053777,-500.0,0.00020171,2]
[319353088,1710693053786,-341.88312286,0.00020171,2]
[319353089,1710693053795,-500.0,0.00020171,2]
[319353090,1710693053804,-500.0,0.00020171,2]
[319353091,1710693053813,-500.0,0.00020171,2]
[319353092,1710693053822,-500.0,0.00020171,2]
[319353093,1710693053831,-500.0,0.00020171,2]
[319353094,1710693053839,-500.22601956,0.00020171,2]
[319353095,1710693053848,-502.04341992,0.00020171,2]
[319353096,1710693053858,-500.0,0.00020171,2]
[319353097,1710693053867,-500.0,0.00020171,2]
[319353098,1710693053876,-500.0,0.00020171,2]
[319353099,1710693053885,-500.0,0.00020171,2]
[319353100,1710693053894,-312.09156774,0.00020171,2]
[319353101,1710693053903,-359.50014595,0.00020171,2]
[319353102,1710693053913,-4337.08,0.00020171,2]
[319353103,1710693053922,-4337.08,0.00020171,2]
[319353104,1710693053931,-4337.08,0.00020171,2]
[319353105,1710693053941,-4337.08,0.00020171,2]
[319353106,1710693053950,-500.0,0.00020171,2]
[319353107,1710693053959,-500.0,0.00020171,2]
[319353108,1710693053970,-500.0,0.00020171,2]
[319353109,1710693053980,-500.0,0.00020171,2]
[319353110,1710693053989,-404.48276867,0.00020171,2]
[319353111,1710693053999,-985.7,0.00020171,2]
[319353112,1710693054008,-185.49686086,0.00020171,2]
[319353113,1710693054017,-985.7,0.00020171,2]
[319353114,1710693054026,-985.7,0.00020171,2]
[319353115,1710693054035,-899.7,0.00020171,2]
[319353116,1710693054045,-395.49372849,0.00020171,2]
[319353117,1710693054054,-899.7,0.00020171,2]
[319353118,1710693054063,-170.5690101,0.00020171,2]
[319353119,1710693054073,-500.0,0.00020171,2]
[319353120,1710693054082,-1472.43,0.00020171,2]
[319353121,1710693054091,-500.0,0.00020171,2]
[319353122,1710693054100,-1472.43,0.00020171,2]
[319353123,1710693054110,-500.0,0.00020171,2]
[319353124,1710693054119,-500.0,0.00020171,2]
[319353125,1710693054128,-1472.43,0.00020171,2]
[319353126,1710693054137,-1472.43,0.00020171,2]
[319353127,1710693054146,-2588.83,0.00020171,2]
[319353128,1710693054156,-2588.83,0.00020171,2]
[319353129,1710693054166,-2588.83,0.00020171,2]
[319353130,1710693054175,-2588.83,0.00020171,2]